Workbook

Sheet Classsificació
A1: COPA BOTIFARRA SANT MAURE'13
A2: 11 gener 2013
L4: CLASSIFICACIÓ | P4: RONDA 1 | S4: RONDA 2 | V4: RONDA 3 | Y4: RONDA 4 | AB4: RONDA 5 | AE4: FINAL
B5: Equip | C5: Jugador | D5: Partits | L5: Premi | M5: Diferència | N5: Favor | O5: Contra | P5: Premi | Q5: Favor | R5: Contra | S5: Premi | T5: Favor | U5: Contra | V5: Premi | W5: Favor | X5: Contra | Y5: Premi | Z5: Favor | AA5: Contra | AB5: Premi | AC5: Favor | AD5: Contra | AE5: Premi | AF5: Favor | AG5: Contra
A6: 1 | B6: 4 | C6: Joan Carles Conesa | D6: 1 | J6: =RAND() -> 0.3883747301 | K6: =+N6+J6 -> 282.3883747 | L6: =+P6+S6+V6+Y6+AB6+AE6 -> 16 | M6: =+N6-O6 -> 209 | N6: =+Q6+T6+W6+Z6+AC6+AF6 -> 282 | O6: =+R6+U6+X6+AA6+AD6+AG6 -> 73 | P6: 3 | Q6: 66 | R6: 0 | S6: 3 | T6: 52 | U6: 0 | V6: 3 | W6: 25 | X6: 19 | Y6: 3 | Z6: 81 | AA6: 12 | AB6: 3 | AC6: 37 | AD6: 19 | AE6: 1 | AF6: 21 | AG6: 23
A7: =1+A6 -> 2 | B7: 5 | C7: Carles Rodon | D7: 2 | J7: 0.9174145261 | K7: 178.9174145 | L7: 15 | M7: 56 | N7: 178 | O7: 122 | P7: 3 | Q7: 22 | R7: 16 | S7: 0 | T7: 0 | U7: 52 | V7: 3 | W7: 32 | X7: 6 | Y7: 3 | Z7: 64 | AA7: 8 | AB7: 3 | AC7: 37 | AD7: 19 | AE7: 3 | AF7: 23 | AG7: 21
A8: =1+A7 -> 3 | B8: 10 | C8: Mª José Nevado | D8: 1 | J8: 0.00133132527 | K8: 305.0013313 | L8: 12 | M8: 218 | N8: 305 | O8: 87 | P8: 1 | Q8: 16 | R8: 22 | S8: 3 | T8: 107 | U8: 1 | V8: 1 | W8: 19 | X8: 25 | Y8: 3 | Z8: 64 | AA8: 8 | AB8: 3 | AC8: 78 | AD8: 8 | AE8: 1 | AF8: 21 | AG8: 23
A9: 4 | B9: 3 | C9: Montse Pedrós | D9: 2 | J9: 0.2592379085 | K9: 184.2592379 | L9: 12 | M9: 87 | N9: 184 | O9: 97 | P9: 0 | Q9: 0 | R9: 24 | S9: 3 | T9: 42 | U9: 12 | V9: 0 | W9: 6 | X9: 32 | Y9: 3 | Z9: 35 | AA9: 0 | AB9: 3 | AC9: 78 | AD9: 8 | AE9: 3 | AF9: 23 | AG9: 21
A10: 5 | B10: 6 | C10: Núria Roca | J10: 0.2048281762 | K10: 187.2048282 | L10: 9 | M10: 49 | N10: 187 | O10: 138 | P10: 3 | Q10: 24 | R10: 0 | S10: 3 | T10: 107 | U10: 1 | V10: 3 | W10: 25 | X10: 19 | Y10: 0 | Z10: 12 | AA10: 81 | AB10: 0 | AC10: 19 | AD10: 37
A11: 6 | B11: 1 | C11: Marc Vidal | J11: 0.1893628863 | K11: 174.1893629 | L11: 9 | M11: 41 | N11: 174 | O11: 133 | P11: 0 | Q11: 0 | R11: 66 | S11: 3 | T11: 42 | U11: 12 | V11: 3 | W11: 32 | X11: 6 | Y11: 3 | Z11: 81 | AA11: 12 | AB11: 0 | AC11: 19 | AD11: 37
A12: 7 | B12: 2 | C12: Jordi Marzá | J12: 0.3305024229 | K12: 113.3305024 | L12: 7 | M12: -87 | N12: 113 | O12: 200 | P12: 3 | Q12: 22 | R12: 16 | S12: 3 | T12: 52 | U12: 0 | V12: 1 | W12: 19 | X12: 25 | Y12: 0 | Z12: 12 | AA12: 81 | AB12: 0 | AC12: 8 | AD12: 78
A13: 8 | B13: 8 | C13: Jordi Montiel | J13: 0.5524209206 | K13: 66.55242092 | L13: 7 | M13: -137 | N13: 66 | O13: 203 | P13: 1 | Q13: 16 | R13: 22 | S13: 0 | T13: 1 | U13: 107 | V13: 3 | W13: 24 | X13: 16 | Y13: 0 | Z13: 0 | AA13: 35 | AB13: 3 | AC13: 25 | AD13: 23
A14: 9 | B14: 9 | C14: Mercè Marinel·lo | J14: 0.7638174894 | K14: 74.76381749 | L14: 7 | M14: -144 | N14: 74 | O14: 218 | P14: 3 | Q14: 24 | R14: 0 | S14: 0 | T14: 1 | U14: 107 | V14: 1 | W14: 16 | X14: 24 | Y14: 0 | Z14: 8 | AA14: 64 | AB14: 3 | AC14: 25 | AD14: 23
A15: 10 | B15: 11 | C15: Joan Biscarri | J15: 0.7156690976 | K15: 79.7156691 | L15: 6 | M15: -123 | N15: 79 | O15: 202 | P15: 0 | Q15: 0 | R15: 66 | S15: 0 | T15: 12 | U15: 42 | V15: 3 | W15: 24 | X15: 16 | Y15: 3 | Z15: 35 | AA15: 0 | AB15: 0 | AC15: 8 | AD15: 78
A16: 11 | B16: 7 | C16: Josep Mª Grau | J16: 0.2773550942 | K16: 103.2773551 | L16: 4 | M16: -70 | N16: 103 | O16: 173 | P16: 3 | Q16: 66 | R16: 0 | S16: 0 | T16: 0 | U16: 52 | V16: 0 | W16: 6 | X16: 32 | Y16: 0 | Z16: 8 | AA16: 64 | AB16: 1 | AC16: 23 | AD16: 25
A17: 12 | B17: 12 | C17: Toñi Fuentes | J17: 0.8526834997 | K17: 51.8526835 | L17: 2 | M17: -99 | N17: 51 | O17: 150 | P17: 0 | Q17: 0 | R17: 24 | S17: 0 | T17: 12 | U17: 42 | V17: 1 | W17: 16 | X17: 24 | Y17: 0 | Z17: 0 | AA17: 35 | AB17: 1 | AC17: 23 | AD17: 25
A18: 13 | J18: 0.7428061601 | K18: 0.7428061601 | L18: 0 | M18: 0 | N18: 0 | O18: 0
A19: 14 | J19: 0.145574613 | K19: 0.145574613 | L19: 0 | M19: 0 | N19: 0 | O19: 0
A20: 15 | J20: 0.3468923343 | K20: 0.3468923343 | L20: 0 | M20: 0 | N20: 0 | O20: 0
A21: 16 | J21: 0.4612762725 | K21: 0.4612762725 | L21: 0 | M21: 0 | N21: 0 | O21: 0
A22: 17 | J22: 0.3977046512 | K22: 0.3977046512 | L22: 0 | M22: 0 | N22: 0 | O22: 0
A23: 18 | J23: =RAND() -> 0.8929440435 | K23: =+N23+J23 -> 0.8929440435 | L23: -20 | M23: =+N23-O23 -> 0 | N23: =+Q23+T23+W23+Z23+AC23+AF23 -> 0 | O23: =+R23+U23+X23+AA23+AD23+AG23 -> 0
A24: 19 | J24: 0.07357259019 | K24: 0.07357259019 | L24: -20 | M24: 0 | N24: 0 | O24: 0
A25: 20 | J25: 0.4045595486 | K25: 0.4045595486 | L25: -20 | M25: 0 | N25: 0 | O25: 0
A26: 21 | D26: 20 | J26: 0.3989207407 | K26: 0.3989207407 | L26: -20 | M26: 0 | N26: 0 | O26: 0
A27: 22 | D27: 20 | J27: 0.2051984903 | K27: 0.2051984903 | L27: -20 | M27: 0 | N27: 0 | O27: 0
A28: 23 | D28: 20 | J28: 0.5080704156 | K28: 0.5080704156 | L28: -20 | M28: 0 | N28: 0 | O28: 0
A29: 24 | D29: 20 | J29: 0.2019096633 | K29: 0.2019096633 | L29: -20 | M29: 0 | N29: 0 | O29: 0
A30: 25 | D30: 20 | J30: 0.715676129 | K30: 0.715676129 | L30: -20 | M30: 0 | N30: 0 | O30: 0
A31: 26 | D31: 20 | J31: 0.5989516388 | K31: 0.5989516388 | L31: -20 | M31: 0 | N31: 0 | O31: 0
A32: 27 | D32: 20 | J32: 0.4514435009 | K32: 0.4514435009 | L32: -20 | M32: 0 | N32: 0 | O32: 0
A33: 28 | D33: 20 | J33: 0.5238310612 | K33: 0.5238310612 | L33: -20 | M33: 0 | N33: 0 | O33: 0
A34: 29 | D34: 20 | J34: 0.006103648127 | K34: 0.006103648127 | L34: -20 | M34: 0 | N34: 0 | O34: 0
A35: 30 | D35: 20 | J35: 0.7700913804 | K35: 0.7700913804 | L35: -20 | M35: 0 | N35: 0 | O35: 0
A36: 31 | D36: 20 | J36: 0.7563921458 | K36: 0.7563921458 | L36: -20 | M36: 0 | N36: 0 | O36: 0
A37: 32 | D37: 20 | J37: 0.3043882647 | K37: 0.3043882647 | L37: -20 | M37: 0 | N37: 0 | O37: 0
A38: 33 | D38: 20 | J38: 0.09656972078 | K38: 0.09656972078 | L38: -20 | M38: 0 | N38: 0 | O38: 0
A39: 34 | D39: 20 | J39: 0.9785870596 | K39: 0.9785870596 | L39: -20 | M39: 0 | N39: 0 | O39: 0
A40: 35 | D40: 20 | J40: 0.2923619063 | K40: 0.2923619063 | L40: -20 | M40: 0 | N40: 0 | O40: 0
C41: Descansa
Q42: =SUM(Q6:Q22) -> 256 | R42: =SUM(R6:R22) -> 256 | T42: =SUM(T6:T22) -> 428 | U42: =SUM(U6:U22) -> 428 | W42: =SUM(W6:W22) -> 244 | X42: =SUM(X6:X22) -> 244 | Z42: =SUM(Z6:Z22) -> 400 | AA42: =SUM(AA6:AA22) -> 400 | AC42: =SUM(AC6:AC22) -> 380 | AD42: =SUM(AD6:AD22) -> 380 | AF42: =+Q42+T42+W42+Z42+AC42 -> 1708 | AG42: =+R42+U42+X42+AA42+AD42 -> 1708
Q43: =+Q6+Q7+Q10 -> 112 | R43: =+R6+R7+R10 -> 16 | T43: =+T6+T8+T9 -> 201 | U43: =+U6+U8+U9 -> 13 | W43: =+W6+W7+W13 -> 81 | X43: =+X6+X7+X13 -> 41 | Z43: =+Z6+Z7+Z9 -> 180 | AA43: =+AA6+AA7+AA9 -> 20 | AC43: =+AC6+AC8+AC13 -> 140 | AD43: =+AD6+AD8+AD13 -> 50 | AF43: =+Q43+T43+W43+Z43+AC43 -> 714 | AG43: =+R43+U43+X43+AA43+AD43 -> 140
R44: =(Q43-R43)/3 -> 32 | U44: =(T43-U43)/3 -> 62.66666667 | X44: =(W43-X43)/3 -> 13.33333333 | AA44: =(Z43-AA43)/3 -> 53.33333333 | AD44: =(AC43-AD43)/3 -> 30 | AG44: =+AF43-AG43 -> 574
L45: CLASSIFICACIÓ | AE45: RONDA 6
C46: Jugador | E46: R 1 | F46: R 2 | G46: R 3 | H46: R 4 | I46: R 5 | J46: R 6 | L46: Premi | M46: Diferència | N46: Favor | O46: Contra
A47: =RANK(D47,D$47:D$66,0) -> 1 | D47: =+L47*1000+M47 -> 0 | L47: =+P47+S47+V47+Y47+AB47+AE47 -> 0 | M47: =+N47-O47 -> 0 | N47: =+Q47+T47+W47+Z47+AC47+AF47 -> 0 | O47: =+R47+U47+X47+AA47+AD47+AG47 -> 0
A48: =RANK(D48,D$47:D$66,0) -> 1 | D48: =+L48*1000+M48 -> 0 | L48: 0 | M48: 0 | N48: 0 | O48: 0
A49: 1 | D49: 0 | L49: 0 | M49: 0 | N49: 0 | O49: 0
A50: 1 | D50: 0 | L50: 0 | M50: 0 | N50: 0 | O50: 0
A51: 1 | D51: 0 | L51: 0 | M51: 0 | N51: 0 | O51: 0
A52: 1 | D52: 0 | L52: 0 | M52: 0 | N52: 0 | O52: 0
A53: 1 | D53: 0 | L53: 0 | M53: 0 | N53: 0 | O53: 0
A54: 1 | D54: 0 | L54: 0 | M54: 0 | N54: 0 | O54: 0
A55: 1 | D55: 0 | L55: 0 | M55: 0 | N55: 0 | O55: 0
A56: 1 | D56: 0 | L56: 0 | M56: 0 | N56: 0 | O56: 0
A57: 1 | D57: 0 | L57: 0 | M57: 0 | N57: 0 | O57: 0
A58: 1 | D58: 0 | L58: 0 | M58: 0 | N58: 0 | O58: 0
A59: 1 | D59: 0 | L59: 0 | M59: 0 | N59: 0 | O59: 0
A60: 1 | D60: 0 | L60: 0 | M60: 0 | N60: 0 | O60: 0
A61: 1 | D61: 0 | L61: 0 | M61: 0 | N61: 0 | O61: 0
A62: 1 | D62: 0 | L62: 0 | M62: 0 | N62: 0 | O62: 0
A63: 1 | D63: 0 | L63: 0 | M63: 0 | N63: 0 | O63: 0
A64: 1 | D64: 0 | L64: 0 | M64: 0 | N64: 0 | O64: 0
A65: 1 | D65: =+L65*1000+M65 -> 0 | L65: =+P65+S65+V65+Y65+AB65+AE65 -> 0 | M65: =+N65-O65 -> 0 | N65: =+Q65+T65+W65+Z65+AC65+AF65 -> 0 | O65: =+R65+U65+X65+AA65+AD65+AG65 -> 0
A66: 1 | D66: =+L66*1000+M66 -> 0 | L66: =+P66+S66+V66+Y66+AB66+AE66 -> 0 | M66: =+N66-O66 -> 0 | N66: =+Q66+T66+W66+Z66+AC66+AF66 -> 0 | O66: =+R66+U66+X66+AA66+AD66+AG66 -> 0
AF67: Diferència mitjana | AG67: =+AG44/15 -> 38.26666667

Sheet Resultats
A1: PARTIDES ST MAURE'12
A3: Taula | B3: Ronda | C3: EQUIPS | E3: Local | F3: Visitant | G3: Resultat

Sheet Inscripcions
A2: SOPAR BOTIFARRA | E2: CAMPIONAT BOTIFARRA
B5: PARTICIPANTS | F5: PARTICIPANTS | J5: PARTICIPANTS
A7: 1 | E7: 1 | I7: 17
A8: 2 | E8: =+E7+1 -> 2 | I8: =+I7+1 -> 18
A9: 3 | E9: =+E8+1 -> 3 | I9: =+I8+1 -> 19
A10: 4 | E10: 4 | I10: 20
A11: 5 | E11: 5 | I11: 21
A12: 6 | E12: 6 | I12: 22
A13: 7 | E13: 7 | I13: 23
A14: 8 | E14: 8 | I14: 24
A15: 9 | E15: 9 | I15: 25
A16: 10 | E16: 10 | I16: 26
A17: 11 | E17: 11 | I17: 27
A18: 12 | E18: 12 | I18: 28
A19: 13 | E19: 13 | I19: 29
A20: 14 | E20: 14 | I20: 30
A21: 15 | E21: 15 | I21: 31
A22: 16 | E22: 16 | I22: 32

Sheet Control
B1: CONTROL
C3: 1 | D3: 2 | E3: 3 | F3: 4 | G3: 5 | H3: 6 | I3: 7 | J3: 8 | K3: 9 | L3: 10 | M3: 11 | N3: 12 | O3: 13 | P3: 14 | Q3: 15 | R3: 16 | S3: 17 | T3: 18 | U3: 19 | V3: 20 | W3: =+V3+1 -> 21 | X3: =+W3+1 -> 22 | Y3: 23 | Z3: 24 | AA3: 25 | AB3: 26 | AC3: 27 | AD3: 28 | AE3: 29 | AF3: 30 | AG3: 31
B4: 1
C5: 2
D6: 3
E7: 4
F8: 5
G9: 6
H10: 7
I11: 8
J12: 9
K13: 10
L14: 11
M15: 12
N16: 13
O17: 14
P18: 15
Q19: 16
R20: 17
S21: 18
T22: 19
U23: 20
V24: 21
W25: 22
X26: 23
Y27: 24
Z28: 25
AA29: 26
AB30: 27
AC31: 28
AD32: 29
AE33: 30
AF34: 31
AG35: 32

Sheet Quadre lliga
B2: CLASSIFICACIÓ CAMPIONAT BOTIFARRA'06
B5: nº | C5: Dif | D5: Punts | E5: nº | F5: Dif | G5: Punts | H5: nº | I5: Dif | J5: Punts | K5: nº | L5: Dif | M5: Punts | N5: nº | O5: Dif | P5: Punts | Q5: nº | R5: Dif | S5: Punts | T5: nº | U5: Dif | V5: Punts | W5: nº | X5: Dif | Y5: Punts | Z5: nº | AA5: Dif | AB5: Punts | AC5: nº | AD5: Dif | AE5: Punts | AF5: nº | AG5: Dif | AH5: Punts | AI5: nº | AJ5: Dif | AK5: Punts

Sheet Hoja1

Sheet Hoja2
A1: Companys | F1: Companys | J1: Companys | N1: Companys
A2: JUGADOR: | F2: JUGADOR: | J2: JUGADOR: | N2: JUGADOR:
A3: Mà | B3: Taula: | F3: Ronda | G3: COMPANY | J3: Ronda | K3: COMPANY | N3: Ronda | O3: COMPANY
A4: 1 | F4: 1 | J4: 1 | N4: 1
A5: 2 | F5: 2 | J5: 2 | N5: 2
A6: 3 | F6: 3 | J6: 3 | N6: 3
A7: 4 | F7: 4 | J7: 4 | N7: 4
A8: Total | F8: 6 | J8: 6 | N8: 6
A11: Companys | F11: Companys | J11: Companys | N11: Companys
A12: JUGADOR: | F12: JUGADOR: | J12: JUGADOR: | N12: JUGADOR:
A13: Ronda | C13: COMPANY | F13: Ronda | G13: COMPANY | J13: Ronda | K13: COMPANY | N13: Ronda | O13: COMPANY
A14: 1 | F14: 1 | J14: 1 | N14: 1
A15: 2 | F15: 2 | J15: 2 | N15: 2
A16: 3 | F16: 3 | J16: 3 | N16: 3
A17: 4 | F17: 4 | J17: 4 | N17: 4
A18: 5 | F18: 5 | J18: 5 | N18: 5
A19: 6 | F19: 6 | J19: 6 | N19: 6
A22: Companys BOTIFARRA'07
A23: JUGADOR NÚMERO:
A24: Ronda | C24: COMPANY
A25: 1
A26: 2
A27: 3
A28: 4
A29: 5
A30: 6

Sheet Taules
A1: TAULES BOTIFARRA'07
A3: Taula | B3: Ronda | C3: EQUIPS | D3: Local | E3: Visitant
